fUST/lending_fUST_20250319
["ID","MTS","AMOUNT","RATE_DAILY","PERIOD"]
[356356201,1742332262646,1348.95,0.00045484,120]
[356356202,1742332262903,1348.95,0.00045484,120]
[356356203,1742332263156,1348.95,0.00045484,120]
[356356204,1742332263405,1348.95,0.00045484,120]
[356356205,1742332263690,1349.00710607,0.00045484,120]
[356356206,1742332310713,500.0,0.00045484,30]
[356356207,1742332313265,500.0,0.00045484,30]
[356356213,1742332354068,1000.0,0.00045456,30]
[356356214,1742332354377,1000.0,0.00045456,30]
[356356215,1742332354813,1000.0,0.00045456,30]
[356356216,1742332355170,1000.0,0.00045456,30]
[356356217,1742332355597,1000.0,0.00045456,30]
[356356218,1742332356049,1236.24702,0.00045456,30]
[356356219,1742332375840,2000.0,0.00045456,30]
[356356220,1742332376264,467.099999,0.00045456,30]
[356356221,1742332378701,2000.0,0.00045456,30]
[356356222,1742332379108,2000.0,0.00045456,30]
[356356223,1742332379405,883.3,0.00045456,30]
[356356224,1742332644312,254.25,0.00045456,30]
[356356225,1742332644867,336.75,0.00045456,30]
[356356226,1742332951536,1447.985632,0.0004546,30]
[356356227,1742332972027,2000.0,0.0004546,30]
[356356228,1742332972398,2000.0,0.0004546,30]
[356356229,1742332972964,882.7,0.0004546,30]
[356356230,1742333152157,-198.59968475,8.119e-05,2]
[356356231,1742333152178,-300.0,8.217e-05,2]
[356356232,1742333152202,-500.0,8.218e-05,2]
[356356233,1742333152224,-500.0,8.218e-05,2]
[356356234,1742333152244,-241.79505794,8.218e-05,2]
[356356235,1742333152266,-398.03023442,8.218e-05,2]
[356356236,1742333152288,-177.10636203,8.218e-05,2]
[356356237,1742333152310,-14.66491838,8.219e-05,2]
[356356238,1742333196094,-177.10636203,8.218e-05,2]
[356356240,1742333251879,3139.75192936,0.0004546,120]
[356356242,1742333257863,3238.05476728,0.0004546,45]
[356356243,1742333263594,351.46835599,0.0004546,120]
[356356244,1742333269176,646.56161293,0.0004546,120]
[356356245,1742333275229,514.63735385,0.0004546,120]
[356356248,1742333287833,833.89570802,0.0004546,32]
[356356252,1742333294450,246.8323394,0.0004546,120]
[356356254,1742333296803,498.999998,0.0004546,120]
[356356260,1742333303097,903.16462396,0.0004546,120]
[356356263,1742333305455,364.82073444,0.0004546,120]
[356356265,1742333306546,701.26970613,0.0004546,120]
[356356266,1742333307967,967.75434756,0.0004546,120]
[356356267,1742333308063,2908.55546885,0.0004546,30]
[356356269,1742333310261,539.2352904,0.0004546,120]
[356356270,1742333311252,2152.70000238,0.0004546,120]
[356356275,1742333312810,678.74930139,0.0004546,120]
[356356276,1742333313055,698.9703345,0.0004546,30]
[356356278,1742333313970,205.41079533,0.0004546,35]
[356356279,1742333314067,2259.78545909,0.0004546,60]
[356356280,1742333314128,240.82074905,0.0004546,120]
[356356281,1742333314629,696.98001881,0.0004546,30]
[356356283,1742333316018,1344.50966741,0.0004546,120]
[356356284,1742333316047,358.48245012,0.0004546,30]
[356356285,1742333316622,934.23392216,0.0004546,120]
[356356286,1742333316916,2000.0,0.0004546,120]
[356356287,1742333317698,1085.12038969,0.0004546,120]
[356356288,1742333317871,302.47747621,0.0004546,120]
[356356289,1742333318001,1555.2963713,0.0004546,30]
[356356291,1742333318148,936.76783936,0.0004546,120]
[356356292,1742333318270,3126.04886504,0.0004546,120]
[356356293,1742333319199,2542.97751357,0.0004546,120]
[356356294,1742333320139,342.60783607,0.0004546,120]
[356356296,1742333320472,303.06619794,0.0004546,120]
[356356297,1742333320659,290.98488736,0.0004546,120]
[356356298,1742333321014,993.51135217,0.0004546,120]
[356356299,1742333321313,1686.93581352,0.0004546,120]
[356356300,1742333321535,440.05446864,0.0004546,120]
[356356301,1742333321917,2298.40915448,0.0004546,120]
[356356303,1742333322389,801.25921172,0.0004546,120]
[356356304,1742333322846,420.63619656,0.0004546,120]
[356356305,1742333322929,1446.27145318,0.0004546,120]
[356356307,1742333323030,212.90981427,0.0004546,120]
[356356308,1742333323584,231.87756138,0.0004546,120]
[356356310,1742333324245,312.56979527,0.0004546,120]
[356356311,1742333324417,200.92588983,0.0004546,120]
[356356313,1742333325526,2067.1214664,0.0004546,120]
[356356314,1742333325559,156.38702288,0.0004546,120]
[356356315,1742333325688,2498.12441406,0.0004546,30]
[356356316,1742333326034,363.02931398,0.0004546,120]
[356356317,1742333326063,2116.51564648,0.0004546,120]
[356356318,1742333326092,3026.31682641,0.0004546,30]
[356356479,1742333432464,-300.0,8.218e-05,2]
[356356480,1742333432475,-210.21168058,8.219e-05,2]
[356356505,1742333443429,-289.78831942,8.219e-05,2]
[356356506,1742333443439,-117.14935934,8.219e-05,2]
[356356517,1742333446500,-515.25390076,8.219e-05,2]
[356356518,1742333446510,-500.0,8.219e-05,2]
[356356519,1742333446521,-500.0,8.219e-05,2]
[356356520,1742333446531,-500.0,8.219e-05,2]
[356356521,1742333446541,-500.0,8.219e-05,2]
[356356522,1742333446553,-500.0,8.219e-05,2]
[356356523,1742333446563,-292.95891071,8.219e-05,2]
[356356524,1742333446577,-500.0,8.219e-05,2]
[356356525,1742333446588,-500.0,8.219e-05,2]
[356356527,1742333446597,-500.0,8.219e-05,2]
[356356528,1742333446607,-500.0,8.219e-05,2]
[356356530,1742333446617,-500.0,8.219e-05,2]
[356356532,1742333446627,-500.0,8.219e-05,2]
[356356534,1742333446636,-500.0,8.219e-05,2]
[356356535,1742333446646,-500.0,8.219e-05,2]
[356356536,1742333446655,-500.0,8.219e-05,2]
[356356537,1742333446665,-500.0,8.219e-05,2]
[356356538,1742333446675,-500.0,8.219e-05,2]
[356356539,1742333446684,-500.0,8.219e-05,2]
[356356540,1742333446693,-500.0,8.219e-05,2]
[356356541,1742333446703,-500.0,8.219e-05,2]
[356356542,1742333446712,-317.80668087,8.219e-05,2]
[356356543,1742333446722,-500.0,8.219e-05,2]
[356356544,1742333446731,-1000.0,8.219e-05,2]
[356356545,1742333446740,-510.90980372,8.219e-05,2]
[356356546,1742333446749,-500.0,8.219e-05,2]
[356356547,1742333446758,-500.0,8.219e-05,2]
[356356548,1742333446768,-500.0,8.219e-05,2]
[356356549,1742333446778,-532.23678484,8.219e-05,2]
[356356550,1742333446787,-500.0,8.219e-05,2]
[356356551,1742333446797,-500.0,8.219e-05,2]
[356356552,1742333446806,-500.0,8.219e-05,2]
[356356553,1742333446816,-500.0,8.219e-05,2]
[356356554,1742333446826,-500.0,8.219e-05,2]
[356356555,1742333446835,-366.63859321,8.219e-05,2]
[356356556,1742333446845,-500.0,8.219e-05,2]
[356356557,1742333446854,-938.04,8.219e-05,2]
[356356558,1742333446865,-500.0,8.219e-05,2]
[356356559,1742333446875,-500.0,8.219e-05,2]
[356356560,1742333446884,-500.0,8.219e-05,2]
[356356561,1742333446894,-500.0,8.219e-05,2]
[356356562,1742333446907,-711.09,8.219e-05,2]
[356356563,1742333446917,-823.76,8.219e-05,2]
[356356564,1742333446927,-500.0,8.219e-05,2]
[356356565,1742333446937,-307.66,8.219e-05,2]
[356356566,1742333446947,-500.0,8.219e-05,2]
[356356567,1742333446957,-10726.41054844,8.219e-05,2]
[356356569,1742333551623,150.0,0.00045461,30]
[356356577,1742333704377,2000.0,0.00045461,120]
[356356581,1742333774755,1008.77891616,0.00045461,30]
[356356583,1742334154591,167.321308,7.659e-05,2]
[356356584,1742334340152,-160.53246295,8.136e-05,2]
[356356585,1742334340175,-203.84126462,8.218e-05,2]
[356356586,1742334340199,-300.0,8.218e-05,2]
[356356587,1742334340220,-22.10303634,8.218e-05,2]
[356356588,1742334387747,6114.0,0.00045458,30]
[356356589,1742334432101,-422.87284579,8.218e-05,2]
[356356590,1742334432123,-300.0,8.218e-05,2]
[356356591,1742334432144,-181.8640051,8.219e-05,2]
[356356597,1742334611544,4665.3503182,7.555e-05,2]
[356357088,1742334646621,-300.0,8.218e-05,2]
[356357089,1742334646631,-148.63,8.219e-05,2]
[356357097,1742335483517,2000.0,0.00045469,120]
[356357098,1742335487609,1062.44122439,0.00045469,30]
[356357104,1742335652107,-300.0,8.216e-05,2]
[356357105,1742335652128,-500.0,8.217e-05,2]
[356357106,1742335652149,-98.4877479,8.217e-05,2]
[356357292,1742335842745,-212.0,8.216e-05,2]
[356357293,1742335842757,-308.586844,8.217e-05,2]
[356357294,1742335842843,-92.9254081,8.217e-05,2]
[356357295,1742335842853,-500.0,8.217e-05,2]
[356357296,1742335842862,-500.0,8.217e-05,2]
[356357297,1742335842872,-500.0,8.217e-05,2]
[356357298,1742335842882,-500.0,8.217e-05,2]
[356357299,1742335842891,-500.0,8.217e-05,2]
[356357300,1742335842901,-232.53471334,8.217e-05,2]
[356357301,1742335842910,-367.51159625,8.218e-05,2]
[356357302,1742335842920,-500.0,8.218e-05,2]
[356357303,1742335842929,-266.11709679,8.218e-05,2]
[356357304,1742335842939,-500.0,8.218e-05,2]
[356357305,1742335842949,-500.0,8.218e-05,2]
[356357307,1742335842960,-500.0,8.218e-05,2]
[356357309,1742335842970,-500.0,8.218e-05,2]
[356357311,1742335842979,-716.5842065,8.218e-05,2]
[356357313,1742335842992,-558.17226814,8.218e-05,2]
[356357314,1742335843002,-571.07999184,8.218e-05,2]
[356357315,1742335843011,-500.0,8.219e-05,2]
[356357316,1742335843020,-500.0,8.219e-05,2]
[356357317,1742335843029,-503.53503436,8.219e-05,2]
[356357318,1742335843038,-500.0,8.219e-05,2]
[356357319,1742335843047,-500.0,8.219e-05,2]
[356357320,1742335843055,-500.0,8.219e-05,2]
[356357321,1742335843064,-500.0,8.219e-05,2]
[356357322,1742335843073,-500.0,8.219e-05,2]
[356357323,1742335843083,-382.85064066,8.219e-05,2]
[356357324,1742335843092,-528.02758655,8.219e-05,2]
[356357325,1742335843102,-500.0,8.219e-05,2]
[356357326,1742335843112,-506.2357008,8.219e-05,2]
[356357327,1742335843123,-500.0,8.219e-05,2]
[356357328,1742335843133,-517.2983277,8.219e-05,2]
[356357329,1742335843143,-500.0,8.219e-05,2]
[356357330,1742335843153,-467.91039593,8.219e-05,2]
[356357331,1742335843163,-507.60289689,8.219e-05,2]
[356357332,1742335843172,-619.60827468,8.219e-05,2]
[356357333,1742335843181,-506.45146868,8.219e-05,2]
[356357334,1742335843192,-500.78003047,8.219e-05,2]
[356357335,1742335843202,-500.0,8.219e-05,2]
[356357336,1742335843213,-500.0,8.219e-05,2]
[356357337,1742335843222,-157.11608716,8.219e-05,2]
[356357338,1742335843231,-500.0,8.219e-05,2]
[356357339,1742335843240,-500.0,8.219e-05,2]
[356357340,1742335843249,-338.89568724,8.219e-05,2]
[356357341,1742335843258,-374.1559949,8.219e-05,2]
[356357342,1742335843267,-500.0,8.219e-05,2]
[356357343,1742335843276,-789.43,8.219e-05,2]
[356357344,1742335843286,-898.96,8.219e-05,2]
[356357345,1742335843297,-500.0,8.219e-05,2]
[356357346,1742335843310,-495.25015,8.219e-05,2]
[356357347,1742335843320,-500.0,8.219e-05,2]
[356357348,1742335843330,-723.84,8.219e-05,2]
[356357349,1742335843340,-500.0,8.219e-05,2]
[356357350,1742335843349,-500.0,8.219e-05,2]
[356357351,1742335843359,-500.0,8.219e-05,2]
[356357352,1742335843368,-500.0,8.219e-05,2]
[356357353,1742335843378,-9733.88758903,8.219e-05,2]
[356357362,1742335845834,-1862.68241097,8.219e-05,2]
[356357364,1742335845844,-500.0,8.219e-05,2]
[356357365,1742335845853,-345.73,8.219e-05,2]
[356357366,1742335845863,-500.0,8.219e-05,2]
[356357367,1742335845872,-500.0,8.219e-05,2]
[356357368,1742335845882,-500.0,8.219e-05,2]
[356357369,1742335845891,-500.0,8.219e-05,2]
[356357370,1742335845901,-500.0,8.219e-05,2]
[356357371,1742335845911,-500.0,8.219e-05,2]
[356357372,1742335845920,-500.0,8.219e-05,2]
[356357373,1742335845930,-18207.39,8.219e-05,2]
[356357374,1742335845939,-500.0,8.219e-05,2]
[356357375,1742335845949,-500.0,8.219e-05,2]
[356357376,1742335845959,-500.0,8.219e-05,2]
[356357377,1742335845969,-500.0,8.219e-05,2]
[356357378,1742335845978,-500.0,8.219e-05,2]
[356357380,1742335845987,-500.0,8.219e-05,2]
[356357382,1742335845997,-500.0,8.219e-05,2]
[356357384,1742335846007,-500.0,8.219e-05,2]
[356357386,1742335846016,-500.0,8.219e-05,2]
[356357387,1742335846025,-500.0,8.219e-05,2]
[356357390,1742335846035,-500.0,8.219e-05,2]
[356357392,1742335846044,-500.0,8.219e-05,2]
[356357394,1742335846053,-500.0,8.219e-05,2]
[356357396,1742335846063,-500.0,8.219e-05,2]
[356357398,1742335846072,-500.0,8.219e-05,2]
[356357400,1742335846082,-500.0,8.219e-05,2]
[356357402,1742335846091,-500.0,8.219e-05,2]
[356357404,1742335846100,-500.0,8.219e-05,2]
[356357406,1742335846110,-500.0,8.219e-05,2]
[356357407,1742335846119,-500.0,8.219e-05,2]
[356357408,1742335846129,-500.0,8.219e-05,2]
[356357409,1742335846138,-500.0,8.219e-05,2]
[356357411,1742335846148,-500.0,8.219e-05,2]
[356357413,1742335846157,-500.0,8.219e-05,2]
[356357415,1742335846167,-500.0,8.219e-05,2]
[356357417,1742335846176,-1166.78,8.219e-05,2]
[356357418,1742335846185,-500.0,8.219e-05,2]
[356357419,1742335846194,-500.0,8.219e-05,2]
[356357420,1742335846204,-500.0,8.219e-05,2]
[356357421,1742335846214,-500.0,8.492e-05,2]
[356357422,1742335846224,-500.0,8.492e-05,2]
[356357423,1742335846233,-500.0,8.492e-05,2]
[356357424,1742335846243,-500.0,8.492e-05,2]
[356357425,1742335846252,-195.48168965,8.492e-05,2]
[356357426,1742335846262,-500.0,8.492e-05,2]
[356357427,1742335846271,-789.43,8.493e-05,2]
[356357428,1742335846280,-898.96,8.493e-05,2]
[356357429,1742335846290,-500.0,8.493e-05,2]
[356357430,1742335846299,-723.84,8.493e-05,2]
[356357431,1742335846308,-500.0,8.493e-05,2]
[356357432,1742335846318,-11596.57,8.493e-05,2]
[356357433,1742335846327,-500.0,8.493e-05,2]
[356357434,1742335846336,-500.0,8.493e-05,2]
[356357435,1742335846345,-500.0,8.493e-05,2]
[356357436,1742335846355,-500.0,8.493e-05,2]
[356357437,1742335846364,-168.56124511,8.493e-05,2]
[356357438,1742335846373,-9147.62678599,8.493e-05,2]
[356357439,1742335846386,-840.638,8.493e-05,2]
[356357442,1742336153417,5000.57,0.00045458,30]
[356357443,1742336562779,2000.0,0.00045467,30]
[356357444,1742336576697,500.0,0.00045467,30]
[356357445,1742336579246,500.0,0.00045467,30]
[356357446,1742336597656,2478.81536449,0.00045467,120]
[356357447,1742336620078,1000.0,0.00045467,120]
[356357448,1742336629342,1000.0,0.00045467,120]
[356357449,1742336636813,1000.0,0.00045467,120]
[356357450,1742336647437,1000.0,0.00045467,120]
[356357451,1742336664164,1000.0,0.00045467,120]
[356357452,1742336671207,1000.0,0.00045467,120]
[356357453,1742336677486,1000.0,0.00045467,120]
[356357454,1742336685682,1000.0,0.00045467,120]
[356357466,1742336724066,2000.0,0.00045467,30]
[356357469,1742336728255,2000.0,0.00045467,30]
[356357470,1742336728979,2000.0,0.00045467,30]
[356357474,1742336730073,2000.0,0.00045467,30]
[356357475,1742336730437,2000.0,0.00045467,30]
[356357476,1742336730829,2000.0,0.00045467,30]
[356357477,1742336731265,2000.0,0.00045467,30]
[356357478,1742336731654,2000.0,0.00045467,30]
[356357479,1742336732054,2000.0,0.00045467,30]
[356357480,1742336732441,2000.0,0.00045467,30]
[356357481,1742336732830,2000.0,0.00045467,30]
[356357485,1742336748872,2000.0,0.00045467,30]
[356357486,1742336749310,2000.0,0.00045467,30]
[356357487,1742336749791,2000.0,0.00045467,30]
[356357489,1742336750073,2000.0,0.00045467,30]
[356357490,1742336750478,2000.0,0.00045467,30]
[356357491,1742336750913,2000.0,0.00045467,30]
[356357492,1742336751304,2000.0,0.00045467,30]
[356357493,1742336751681,2000.0,0.00045467,30]
[356357494,1742336752068,2000.0,0.00045467,30]
[356357495,1742336752455,2000.0,0.00045467,30]
[356357496,1742336752844,2000.0,0.00045467,30]
[356357497,1742336753215,2000.0,0.00045467,30]
[356357498,1742336753579,2000.0,0.00045467,30]
[356357499,1742336753954,2000.0,0.00045467,30]
[356357500,1742336756121,-198.59968475,8.118e-05,2]
[356357501,1742336756143,-300.0,8.217e-05,2]
[356357502,1742336756166,-500.0,8.218e-05,2]
[356357503,1742336756188,-177.90245513,8.218e-05,2]
[356357504,1742336756211,-500.0,8.218e-05,2]
[356357505,1742336756233,-343.19760425,8.218e-05,2]
[356357506,1742336756253,-146.12456403,8.218e-05,2]
[356357512,1742336769879,421.0,0.00045467,30]
[356357524,1742336817099,-177.0,8.217e-05,2]
[356357525,1742336817123,-0.10636203,8.218e-05,2]
[356357635,1742337032142,-187.17464461,8.136e-05,2]
[356357636,1742337032152,-353.76907394,8.218e-05,2]
[356357637,1742337032162,-499.99999999,8.218e-05,2]
[356357638,1742337032171,-500.0,8.218e-05,2]
[356357640,1742337032181,-625.1254521,8.218e-05,2]
[356357642,1742337032192,-500.0,8.218e-05,2]
[356357643,1742337032202,-500.0,8.218e-05,2]
[356357644,1742337032212,-417.62293681,8.218e-05,2]
[356357645,1742337032224,-241.79505794,8.218e-05,2]
[356357646,1742337032234,-157.51365964,8.218e-05,2]
[356357647,1742337032245,-500.0,8.219e-05,2]
[356357648,1742337032256,-500.0,8.219e-05,2]
[356357649,1742337032267,-500.0,8.219e-05,2]
[356357650,1742337032277,-500.0,8.219e-05,2]
[356357651,1742337032288,-349.24349787,8.219e-05,2]
[356357652,1742337032297,-505.63107761,8.219e-05,2]
[356357653,1742337032308,-256.29817712,8.219e-05,2]
[356357654,1742337032319,-500.0,8.219e-05,2]
[356357655,1742337032329,-500.0,8.219e-05,2]
[356357656,1742337032339,-500.0,8.219e-05,2]
[356357657,1742337032348,-500.0,8.219e-05,2]
[356357658,1742337032357,-500.0,8.219e-05,2]
[356357659,1742337032367,-500.0,8.219e-05,2]
[356357660,1742337032376,-355.318352,8.219e-05,2]
[356357661,1742337032385,-500.0,8.219e-05,2]
[356357662,1742337032395,-503.12290678,8.219e-05,2]
[356357663,1742337032404,-500.0,8.219e-05,2]
[356357664,1742337032414,-500.0,8.219e-05,2]
[356357665,1742337032423,-500.0,8.219e-05,2]
[356357666,1742337032434,-500.0,8.219e-05,2]
[356357667,1742337032444,-508.20562676,8.219e-05,2]
[356357668,1742337032454,-504.90543825,8.219e-05,2]
[356357669,1742337032464,-500.0,8.219e-05,2]
[356357670,1742337032474,-164.74888284,8.219e-05,2]
[356357671,1742337032483,-516.46533331,8.219e-05,2]
[356357672,1742337032492,-516.2597865,8.219e-05,2]
[356357673,1742337032502,-500.0,8.219e-05,2]
[356357674,1742337032511,-500.0,8.219e-05,2]
[356357675,1742337032520,-500.0,8.219e-05,2]
[356357676,1742337032530,-500.0,8.219e-05,2]
[356357677,1742337032539,-500.0,8.219e-05,2]
[356357678,1742337032548,-500.0,8.219e-05,2]
[356357679,1742337032557,-500.0,8.219e-05,2]
[356357680,1742337032566,-500.0,8.219e-05,2]
[356357681,1742337032575,-500.0,8.219e-05,2]
[356357682,1742337032585,-500.0,8.219e-05,2]
[356357683,1742337032594,-500.0,8.219e-05,2]
[356357684,1742337032603,-500.0,8.219e-05,2]
[356357685,1742337032613,-500.0,8.219e-05,2]
[356357686,1742337032623,-500.0,8.219e-05,2]
[356357687,1742337032632,-163.07506449,8.219e-05,2]
[356357688,1742337032642,-500.0,8.219e-05,2]
[356357689,1742337032651,-500.0,8.219e-05,2]
[356357690,1742337032662,-500.0,8.219e-05,2]
[356357691,1742337032672,-500.0,8.219e-05,2]
[356357692,1742337032682,-500.0,8.219e-05,2]
[356357693,1742337032691,-500.0,8.219e-05,2]
[356357694,1742337032700,-500.0,8.219e-05,2]
[356357695,1742337032710,-500.0,8.219e-05,2]
[356357696,1742337032719,-500.0,8.219e-05,2]
[356357697,1742337032729,-500.0,8.219e-05,2]
[356357698,1742337032738,-75.13373157,8.219e-05,2]
[356357703,1742337037783,-424.86626843,8.219e-05,2]
[356357705,1742337037793,-500.0,8.219e-05,2]
[356357707,1742337037802,-500.0,8.219e-05,2]
[356357708,1742337037811,-333.57061332,8.219e-05,2]
[356357769,1742337040214,-166.42938668,8.219e-05,2]
[356357771,1742337040224,-231.57061332,8.219e-05,2]
[356357779,1742337040294,-268.42938668,8.219e-05,2]
[356357781,1742337040304,-500.0,8.219e-05,2]
[356357783,1742337040313,-500.0,8.219e-05,2]
[356357785,1742337040323,-500.0,8.219e-05,2]
[356357787,1742337040332,-500.0,8.219e-05,2]
[356357789,1742337040341,-500.0,8.219e-05,2]
[356357791,1742337040350,-500.0,8.219e-05,2]
[356357793,1742337040360,-500.0,8.219e-05,2]
[356357795,1742337040369,-486.34686162,8.219e-05,2]
[356357797,1742337040379,-500.0,8.219e-05,2]
[356357799,1742337040389,-500.0,8.219e-05,2]
[356357801,1742337040398,-500.0,8.219e-05,2]
[356357803,1742337040407,-1303.02,8.219e-05,2]
[356357805,1742337040417,-500.0,8.219e-05,2]
[356357807,1742337040426,-512.76131652,8.219e-05,2]
[356357809,1742337040436,-500.0,8.219e-05,2]
[356357811,1742337040445,-500.0,8.219e-05,2]
[356357813,1742337040455,-500.0,8.219e-05,2]
[356357815,1742337040465,-500.0,8.219e-05,2]
[356357817,1742337040475,-824.04,8.219e-05,2]
[356357819,1742337040485,-723.65,8.219e-05,2]
[356357821,1742337040495,-663.52,8.219e-05,2]
[356357823,1742337040505,-500.0,8.219e-05,2]
[356357825,1742337040514,-10663.26,8.219e-05,2]
[356357827,1742337040524,-500.0,8.219e-05,2]
[356357829,1742337040533,-500.0,8.219e-05,2]
[356357831,1742337040542,-500.0,8.219e-05,2]
[356357833,1742337040552,-500.0,8.219e-05,2]
[356357835,1742337040561,-17280.22,8.219e-05,2]
[356357837,1742337040571,-179.69581761,8.219e-05,2]
[356357839,1742337040580,-500.0,8.219e-05,2]
[356357841,1742337040589,-500.0,8.219e-05,2]
[356357843,1742337040598,-500.0,8.219e-05,2]
[356357845,1742337040608,-500.0,8.219e-05,2]
[356357847,1742337040618,-500.0,8.219e-05,2]
[356357849,1742337040627,-500.0,8.219e-05,2]
[356357851,1742337040637,-500.0,8.219e-05,2]
[356357853,1742337040646,-500.0,8.219e-05,2]
[356357855,1742337040656,-500.0,8.219e-05,2]
[356357856,1742337040665,-500.0,8.219e-05,2]
[356357859,1742337040675,-500.0,8.219e-05,2]
[356357860,1742337040684,-155.01225654,8.219e-05,2]
[356358399,1742337046052,-344.98774346,8.219e-05,2]
[356358401,1742337046062,-500.0,8.219e-05,2]
[356358403,1742337046073,-500.0,8.219e-05,2]
[356358405,1742337046083,-500.0,8.219e-05,2]
[356358407,1742337046092,-301.729783,8.219e-05,2]
[356358409,1742337046105,-198.270217,8.219e-05,2]
[356358411,1742337046115,-500.0,8.219e-05,2]
[356358413,1742337046125,-500.0,8.219e-05,2]
[356358415,1742337046135,-500.0,8.219e-05,2]
[356358417,1742337046145,-500.0,8.219e-05,2]
[356358419,1742337046155,-500.0,8.219e-05,2]
[356358421,1742337046164,-500.0,8.219e-05,2]
[356358423,1742337046174,-500.0,8.219e-05,2]
[356358425,1742337046183,-500.0,8.219e-05,2]
[356358427,1742337046193,-500.0,8.219e-05,2]
[356358429,1742337046203,-500.0,8.219e-05,2]
[356358431,1742337046212,-500.0,8.219e-05,2]
[356358433,1742337046222,-1248.73,8.219e-05,2]
[356358435,1742337046231,-562.96184365,8.393e-05,2]
[356358437,1742337046241,-874.12528963,8.491e-05,2]
[356358439,1742337046250,-151.0,8.492e-05,2]
[356358441,1742337046260,-500.0,8.492e-05,2]
[356358443,1742337046270,-500.0,8.492e-05,2]
[356358445,1742337046279,-513.57304982,8.493e-05,2]
[356358447,1742337046288,-500.0,8.493e-05,2]
[356358449,1742337046298,-279.98390322,8.493e-05,2]
[356358451,1742337046307,-249.85298846,8.493e-05,2]
[356358453,1742337046319,-250.14701154,8.493e-05,2]
[356358455,1742337046328,-424.10298846,8.493e-05,2]
[356358457,1742337046340,-75.89701154,8.493e-05,2]
[356358459,1742337046350,-824.04,8.493e-05,2]
[356358461,1742337046359,-500.0,8.493e-05,2]
[356358463,1742337046368,-611.53847183,8.493e-05,2]
[356358465,1742337046379,-112.11152817,8.493e-05,2]
[356358467,1742337046388,-663.52,8.493e-05,2]
[356358469,1742337046398,-7017.72329306,8.493e-05,2]
[356358471,1742337046409,-3645.53670694,8.493e-05,2]
[356358473,1742337046418,-500.0,8.493e-05,2]
[356358475,1742337046428,-500.0,8.493e-05,2]
[356358477,1742337046438,-500.0,8.493e-05,2]
[356358479,1742337046447,-4191.67755533,8.493e-05,2]
[356358964,1742337139082,866.95072582,0.00045468,30]
[356358965,1742337145385,2000.0,0.00045468,120]
[356358966,1742337242362,1000.0,0.00045456,120]
[356358967,1742337242606,1000.0,0.00045456,120]
[356358968,1742337242885,1000.0,0.00045456,120]
[356358969,1742337243167,1000.0,0.00045456,120]
[356358970,1742337243430,1000.0,0.00045456,120]
[356358971,1742337243807,1000.0,0.00045456,120]
[356358972,1742337243960,1000.0,0.00045456,120]
[356358973,1742337244225,1000.0,0.00045456,120]
[356358974,1742337244497,1037.01198672,0.00045456,120]
[356358975,1742337267137,2000.0,0.00045456,120]
[356358994,1742337691781,500.0,0.00045467,120]
[356358995,1742337692037,500.0,0.00045467,120]
[356358996,1742337692318,500.0,0.00045467,120]
[356358997,1742337692564,500.0,0.00045467,120]
[356358998,1742337692831,500.0,0.00045467,120]
[356358999,1742337693472,500.0,0.00045467,120]
[356359000,1742337693775,500.0,0.00045467,120]
[356359001,1742337694050,500.0,0.00045467,120]
[356359002,1742337694418,500.0,0.00045467,120]
[356359003,1742337694603,500.0,0.00045467,120]
[356359004,1742337694859,446.4375576,0.00045467,120]
[356359005,1742337842083,250.0,7.388e-05,2]
[356359006,1742337903331,24900.0,7.397e-05,2]
[356359009,1742337930121,-300.0,8.218e-05,2]
[356359010,1742337930142,-500.0,8.219e-05,2]
[356359011,1742337930163,-34.41151833,8.219e-05,2]
[356359019,1742338018452,500.0,0.0004547,120]